[Event "44th Chess Olympiad Open 2022"]
[Site "Chennai"]
[Date "2022.08.03"]
[Round "6.3"]
[White "Tabatabaei, M. Amin"]
[Black "Aronian, Levon"]
[Result "1/2-1/2"]
[WhiteElo "2664"]
[BlackElo "2775"]
[Annotator "TA"]
[PlyCount "62"]
[EventDate "2022.??.??"]
[TimeControl "60"]

{[%evp 11,62,12,4,-3,36,34,29,0,-13,-6,-7,-27,-16,-55,-57,-52,-47,-50,31,0,0,
-42,0,0,0,0,0,0,0,0,0,-2,7,0,0,0,0,0,0,0,0,0,0,0,0,0,0,-12,-12,-12,-13,-12,0]} 
1. c4 {[%emt 0:00:07]} Nf6 {[%emt 0:00:09]} 2. g3 {[%emt 0:00:23]} c5 {[%emt 0:
00:00]} 3. Bg2 {[%emt 0:00:25]} Nc6 {[%emt 0:00:17]} 4. Nf3 {[%emt 0:00:48]} d5
{[%emt 0:00:09]} 5. cxd5 {[%emt 0:00:07]} Nxd5 {[%emt 0:00:05]} 6. Nc3 {
[%emt 0:00:13]} g6 {[%emt 0:00:23]} 7. h4 {[%emt 0:00:53][%cal Yh2h4,Yh4h5,
Yh5h6] A34: Symmetrical English: 2 Nc3, lines with ...d5.} Bg7 {[%emt 0:01:29]}
8. h5 {[%emt 0:00:20]} Bf5 {[%emt 0:00:09]} 9. h6 {[%emt 0:00:00] White has an
edge.} (9. Qb3 $5 {[%cal Rc3d5]} Ndb4 10. hxg6 hxg6 11. Rxh8+ Bxh8 12. Kf1 $11
(12. d3 $2 c4 $19)) 9... Bf6 {[%emt 0:01:39]} 10. O-O {[%emt 0:02:00]} O-O {
[%emt 0:03:05]} 11. Nh2 {[%emt 0:00:21] [#]} Nb6 $146 {[%emt 0:07:22]} ({
Predecessor:} 11... Nxc3 12. dxc3 Qb6 13. e4 Rfd8 14. Qe2 Be6 15. f4 Na5 16.
Qf2 Bc4 17. Re1 Bd3 {½-½ (58) Anton Guijarro,D (2681) -Grischuk,A (2777)
Chess.com INT 2020}) 12. g4 {[%emt 0:39:10]} Be6 {[%emt 0:00:00]} 13. Ne4 {
[%emt 0:00:10]} Bd5 {[%emt 0:00:11]} 14. d3 {[%emt 0:00:32]} c4 {[%emt 0:09:26]
} (14... Bh8 $15) 15. dxc4 {[%emt 0:06:39]} Bxe4 {[%emt 0:00:00]} 16. Bxe4 {
[%emt 0:00:23]} Nxc4 {[%emt 0:00:04]} (16... Qc8 $5 {[%cal Rf8d8]}) 17. g5 {
[%emt 0:02:04] The position is equal.} Bh8 {[%emt 0:01:09]} ({Resist} 17...
Bxb2 18. Bxb2 Qxd1 19. Rfxd1 $16) 18. Qxd8 {[%emt 0:12:12]} Rfxd8 {[%emt 0:02:
33]} 19. Nf3 {[%emt 0:00:12]} Rac8 {[%emt 0:03:41]} ({Don't play} 19... Nxb2
20. Rb1 Nc4 21. Rxb7 $16) ({But not} 19... Bxb2 20. Bxb2 Nxb2 21. Rfb1 $16) 20.
Rb1 {[%emt 0:00:30]} Kf8 {[%emt 0:05:47]} 21. a3 {[%emt 0:05:04]} Ke8 {[%emt 0:
03:06]} 22. b3 {[%emt 0:01:37]} Nd6 {[%emt 0:06:17]} 23. Bd3 {[%emt 0:00:07]}
a6 {[%emt 0:00:22]} 24. Be3 {[%emt 0:02:29]} Nb5 {[%emt 0:00:00]} 25. Bxb5 {
[%emt 0:02:37]} axb5 {[%emt 0:00:09]} 26. Rfc1 {[%emt 0:01:02]} Rd5 {[%emt 0:
00:21]} 27. Kg2 {[%emt 0:09:14]} f5 {[%emt 0:00:19]} 28. gxf6 {[%emt 0:00:24]}
Bxf6 {[%emt 0:00:04]} 29. a4 {[%emt 0:00:56]} Ra8 {[%emt 0:00:00]} 30. Rc5 {
[%emt 0:01:49]} Rxc5 {[%emt 0:00:08]} 31. Bxc5 {[%emt 0:00:04]} bxa4 {[%emt 0:
00:07] Weighted Error Value: White=0.08 (flawless) /Black=0.11 (very precise)}
1/2-1/2

[Event "44th Chess Olympiad Open 2022"]
[Site "Chennai"]
[Date "2022.08.03"]
[Round "6.3"]
[White "Daneshvar, Bardiya"]
[Black "Dominguez Perez, Leinier"]
[Result "1/2-1/2"]
[WhiteElo "2490"]
[BlackElo "2754"]
[Annotator "TA"]
[PlyCount "91"]
[EventDate "2022.??.??"]
[TimeControl "60"]

{[%evp 11,91,23,30,7,21,11,9,10,13,13,20,18,20,0,0,-22,-7,-19,0,0,-7,0,0,-3,0,
0,0,0,0,0,0,-8,-9,-36,-28,-35,-10,-10,-12,-15,-9,-21,0,-2,0,0,0,0,0,0,0,0,0,0,
0,0,0,0,0,0,0,0,0,0,0,0,0,0,0,0,0,0,0,0,0,0,0,0,0,0,0,0]} 1. d4 {[%emt 0:00:05]
} Nf6 {[%emt 0:00:07]} 2. c4 {[%emt 0:00:07]} e6 {[%emt 0:00:07]} 3. Nc3 {
[%emt 0:00:07]} d5 {[%emt 0:00:48]} 4. cxd5 {[%emt 0:00:16]} exd5 {[%emt 0:00:
00]} 5. Bg5 {[%emt 0:00:11]} Bb4 {[%emt 0:00:08]} 6. e3 {[%emt 0:01:21]} h6 {
[%emt 0:00:06]} 7. Bxf6 {[%emt 0:05:10] D35: Queen's Gambit Declined: Exchange
Variation.} Qxf6 {[%emt 0:00:15]} 8. Qb3 {[%emt 0:01:18]} Qd6 {[%emt 0:01:41]}
9. a3 {[%emt 0:03:27]} Bxc3+ {[%emt 0:00:21]} 10. Qxc3 {[%emt 0:01:00]} Bf5 {
[%emt 0:04:55] [#]} 11. Qb4 $146 {[%emt 0:07:55]} ({Predecessor:} 11. Nf3 O-O
12. Bd3 Bxd3 13. Qxd3 Nd7 14. O-O Nb6 15. Rfc1 c6 16. Nd2 Qd7 17. Rc3 Rad8 18.
Rd1 Rfe8 19. h3 {0-1 (51) Baldauf,M (2522)-Kryvoruchko,Y (2683) Germany 2022})
11... Qb6 {[%emt 0:40:26]} 12. Rc1 {[%emt 0:08:55]} c6 {[%emt 0:00:00]} 13. Nf3
{[%emt 0:04:20][%cal Yg1f3,Yf3d2,Yd2b3]} Nd7 {[%emt 0:00:00]} 14. Nd2 {[%emt 0:
05:51]} Qc7 {[%emt 0:01:46]} 15. a4 {[%emt 0:11:13]} a5 {[%emt 0:00:00]} 16.
Qa3 {[%emt 0:00:20]} Nf6 {[%emt 0:06:05]} 17. Nb3 {[%emt 0:06:49]} h5 {[%emt 0:
02:58]} 18. Be2 {[%emt 0:04:34]} h4 {[%emt 0:02:17]} 19. O-O {[%emt 0:00:00]}
Ne4 {[%emt 0:08:04]} 20. Nc5 {[%emt 0:04:20]} Qe7 {[%emt 0:06:57]} 21. Nxe4 {
[%emt 0:04:12]} Bxe4 {[%emt 0:01:05]} 22. Qxe7+ {[%emt 0:01:06]} Kxe7 {[%emt 0:
00:00]} 23. f3 {[%emt 0:03:21]} Bf5 {[%emt 0:04:03]} 24. Rc5 {[%emt 0:00:00]
The position is equal.} Rhc8 {[%emt 0:00:50]} 25. e4 {[%emt 0:02:11]} Bd7 {
[%emt 0:00:42]} 26. Rfc1 {[%emt 0:01:35]} b6 {[%emt 0:03:17]} 27. R5c3 {
[%emt 0:00:31]} dxe4 {[%emt 0:02:29]} 28. fxe4 {[%emt 0:00:06]} c5 {[%emt 0:00:
00]} 29. dxc5 {[%emt 0:01:18]} Rxc5 {[%emt 0:00:01]} 30. Rxc5 {[%emt 0:00:37]}
bxc5 {[%emt 0:00:01]} 31. Rxc5 {[%emt 0:00:07]} Bxa4 $11 {[%emt 0:00:01]
Endgame KRB-KRB} 32. Rc7+ {[%emt 0:01:53]} Kf8 {[%emt 0:02:30]} 33. Bc4 {
[%emt 0:01:19]} Be8 {[%emt 0:00:01]} 34. Bd5 {[%emt 0:01:53]} Ra6 {[%emt 0:00:
00]} 35. b3 {[%emt 0:00:22]} a4 {[%emt 0:00:32]} 36. bxa4 {[%emt 0:00:18]} Rxa4
{[%emt 0:00:08]} 37. Kf2 {[%emt 0:01:28]} Ra3 {[%emt 0:00:16]} 38. Rb7 {
[%emt 0:00:55]} Rc3 {[%emt 0:00:36]} 39. Ra7 {[%emt 0:01:55]} f6 {[%emt 0:00:
00]} 40. Rb7 {[%emt 0:02:30]} Rc2+ {[%emt 0:01:45]} 41. Kg1 {[%emt 0:30:14]}
Rd2 {[%emt 0:33:12]} 42. Ra7 {[%emt 0:03:39]} Rb2 {[%emt 0:05:17]} 43. g3 {
[%emt 0:04:46]} h3 {[%emt 0:04:16]} 44. Be6 {[%emt 0:01:59]} Rb1+ {[%emt 0:00:
00]} 45. Kf2 {[%emt 0:00:13]} Rb2+ {[%emt 0:00:40]} 46. Kg1 {[%emt 0:00:15]
Weighted Error Value: White=0.04 (flawless) /Black=0.03 (flawless)} 1/2-1/2

[Event "44th Chess Olympiad Open 2022"]
[Site "Chennai"]
[Date "2022.08.03"]
[Round "6.4"]
[White "Anton Guijarro, David"]
[Black "Albornoz Cabrera, Carlos Daniel"]
[Result "1/2-1/2"]
[WhiteElo "2667"]
[BlackElo "2566"]
[Annotator "TA"]
[PlyCount "89"]
[EventDate "2022.??.??"]
[TimeControl "60"]

{[%evp 11,89,22,14,13,12,8,0,0,11,12,15,8,15,13,26,25,60,56,75,67,82,81,88,85,
88,87,81,65,72,59,70,66,68,61,57,35,54,31,29,19,21,24,41,41,45,26,63,79,58,49,
95,107,98,35,30,24,22,0,0,0,0,0,0,0,0,0,24,25,23,0,0,0,0,0,0,0,0,0,8,0]} 1. d4
{[%emt 0:00:07]} Nf6 {[%emt 0:00:17]} 2. c4 {[%emt 0:00:15]} e6 {[%emt 0:00:04]
} 3. Nf3 {[%emt 0:00:27]} d5 {[%emt 0:00:06]} 4. Nc3 {[%emt 0:00:38]} Bb4 {
[%emt 0:00:13]} 5. Qa4+ {[%emt 0:01:11]} Nc6 {[%emt 0:00:06]} 6. e3 {[%emt 0:
00:00]} O-O {[%emt 0:00:50]} 7. Qc2 {[%emt 0:01:04] D38: Queen's Gambit
Declined: Ragozin Defence (4 Nf3 Bb4).} Re8 {[%emt 0:01:48]} 8. Bd2 {[%emt 0:
00:00]} Bf8 {[%emt 0:02:57]} 9. Be2 {[%emt 0:02:08]} dxc4 {[%emt 0:00:10]} 10.
Bxc4 {[%emt 0:00:58]} Nb4 {[%emt 0:02:04]} 11. Qb1 {[%emt 0:00:53]} c5 {
[%emt 0:07:08]} 12. dxc5 {[%emt 0:06:28]} Bxc5 {[%emt 0:00:14]} 13. O-O {
[%emt 0:18:54] [#]} Nc6 $146 {[%emt 0:22:30]} ({Predecessor:} 13... b6 14. a3
Nc6 15. Ne4 Nxe4 16. Qxe4 Bb7 17. Bc3 Bf8 18. Rfd1 Qe7 19. Bd3 f5 {½-½ (37)
Gukesh,D (2614)-Narayanan,S (2553) Dhaka 2022}) 14. Ne4 {[%emt 0:05:58]} Bb4 {
[%emt 0:03:15]} 15. Rd1 {[%emt 0:02:34] [#] aiming for Bxb4.} Qe7 {[%emt 0:00:
00]} 16. Nxf6+ {[%emt 0:00:54]} Qxf6 {[%emt 0:00:28]} 17. Bxb4 {[%emt 0:09:35]}
Nxb4 {[%emt 0:02:36]} 18. Qe4 {[%emt 0:02:31] Strongly threatening Bb5.} Nc6 {
[%emt 0:01:57]} 19. Rd6 {[%emt 0:07:40]} Rd8 {[%emt 0:12:30]} 20. Rxd8+ {
[%emt 0:00:13]} Qxd8 {[%emt 0:00:10]} 21. h4 {[%emt 0:00:04]} Bd7 {[%emt 0:00:
00]} 22. Ng5 {[%emt 0:02:15][%cal Yf3g5,Yg5e4,Ye4d6]} g6 $1 {[%emt 0:00:00]}
23. Qf4 {[%emt 0:04:10]} Qe7 {[%emt 0:01:09]} 24. Ne4 {[%emt 0:03:43]} (24. Rd1
$5 {[%cal Rf4f7]}) 24... h5 {[%emt 0:04:29]} 25. Be2 {[%emt 0:09:35]} Kg7 {
[%emt 0:02:23]} 26. Qg3 {[%emt 0:00:33]} Rh8 {[%emt 0:00:46]} 27. Rd1 {[%emt 0:
04:16][%cal Yb2b4]} e5 {[%emt 0:06:29]} 28. Nd6 {[%emt 0:00:41]} Be6 {[%emt 0:
01:04]} 29. Bf3 {[%emt 0:01:25]} Bc8 {[%emt 0:13:52]} 30. a3 {[%emt 0:00:00]}
Rd8 {[%emt 0:00:45]} (30... Kh7 $1 $14 {should be considered.}) 31. Nxc8 $16 {
[%emt 0:00:15] White is much more active.} Rxc8 {[%emt 0:00:17] [#]} 32. b4 {
[%emt 0:01:12]} ({White should try} 32. Bxh5 $1 $16 Rh8 33. Bg4) 32... e4 $14 {
[%emt 0:01:18]} 33. Bxh5 {[%emt 0:00:45]} Qe5 $1 {[%emt 0:01:14] Prevents Rd5.}
34. Bg4 {[%emt 0:04:34]} Qxg3 {[%emt 0:00:23]} 35. fxg3 $11 {[%emt 0:00:03]
Endgame KRB-KRN} f5 {[%emt 0:00:16]} 36. Rd7+ {[%emt 0:00:47]} Kf6 {[%emt 0:00:
02] Threatens to win with ...Ne5.} 37. Be2 {[%emt 0:00:37]} Ne5 {[%emt 0:01:47]
} 38. Rxb7 {[%emt 0:00:13]} Rc3 {[%emt 0:00:00]} 39. Rxa7 {[%emt 0:01:56] And
now Ra6+ would win.} Rxe3 {[%emt 0:00:04]} 40. Ra6+ {[%emt 0:02:28]} Ke7 {
[%emt 0:00:28] The position is equal.} 41. Kf2 {[%emt 0:05:52]} Rb3 {[%emt 0:
01:54]} 42. Bd1 {[%emt 0:09:54]} Rd3 {[%emt 0:00:00]} 43. Be2 {[%emt 0:00:31]}
Rb3 {[%emt 0:00:06]} 44. Bd1 {[%emt 0:05:54]} Rd3 {[%emt 0:00:07]} 45. Be2 {
[%emt 0:00:03] Weighted Error Value: White=0.06 (flawless) /Black=0.06 
(flawless)} 1/2-1/2

[Event "44th Chess Olympiad Open 2022"]
[Site "Chennai"]
[Date "2022.08.03"]
[Round "6.4"]
[White "Iturrizaga Bonelli, Eduardo"]
[Black "Almeida Quintana, Omar"]
[Result "1/2-1/2"]
[WhiteElo "2619"]
[BlackElo "2523"]
[Annotator "TA"]
[PlyCount "83"]
[EventDate "2022.??.??"]
[TimeControl "60"]

{[%evp 9,83,37,41,33,66,47,79,68,88,89,101,85,89,84,99,99,90,96,98,97,87,94,89,
97,121,120,122,119,127,71,133,98,160,108,106,99,101,100,93,78,84,82,80,78,72,
74,71,88,89,83,60,0,0,0,0,-2,0,-61,-54,-47,-50,-59,-68,-141,-124,-150,8,8,45,0,
0,0,0,0,0,0]} 1. c4 {[%emt 0:00:03]} g6 {[%emt 0:00:24]} 2. d4 {[%emt 0:01:23]}
Bg7 {[%emt 0:00:04]} 3. e4 {[%emt 0:01:12]} d6 {[%emt 0:00:12]} 4. Nc3 {
[%emt 0:00:07]} e5 {[%emt 0:04:09]} 5. d5 {[%emt 0:01:02]} a5 {[%emt 0:01:44]}
6. Be2 {[%emt 0:17:14] A42: Modern Defence: Averbakh Variation.} h5 {[%emt 0:
00:00]} 7. Nf3 {[%emt 0:03:08][%cal Yg1f3,Yf3d2,Yd2c4]} Bh6 {[%emt 0:00:00] [#]
} 8. c5 $146 {[%emt 0:03:46] White is better.} ({Predecessor:} 8. Bxh6 Nxh6 9.
a3 Na6 10. b4 axb4 11. axb4 Bg4 12. Rb1 Bxf3 13. Bxf3 O-O 14. O-O {½-½ (55)
Bilan,D (2032)-Apryshko,G (2310) Kimry 2014}) 8... Nd7 {[%emt 0:00:00]} 9. cxd6
{[%emt 0:09:29]} cxd6 {[%emt 0:00:08]} 10. Nd2 {[%emt 0:00:18]} Nb6 {[%emt 0:
11:17]} 11. b3 {[%emt 0:05:41]} Nf6 {[%emt 0:04:16]} 12. Ba3 {[%emt 0:01:01]}
O-O {[%emt 0:01:42]} 13. O-O {[%emt 0:02:32]} a4 {[%emt 0:00:00]} 14. Nc4 {
[%emt 0:14:07]} ({But not} 14. bxa4 $6 Nxa4 15. Nxa4 Bxd2 $11) 14... axb3 {
[%emt 0:02:31]} 15. axb3 {[%emt 0:03:48]} Nxc4 {[%emt 0:01:48]} 16. bxc4 {
[%emt 0:00:06]} b6 {[%emt 0:10:18]} 17. Qd3 {[%emt 0:06:01]} Ba6 {[%emt 0:05:
55]} 18. Bb4 {[%emt 0:00:12]} Qd7 {[%emt 0:03:15]} 19. Qf3 {[%emt 0:00:00]} (
19. Ra3 $142) 19... Kg7 {[%emt 0:05:13]} (19... Qe7 $142) 20. Ra2 {[%emt 0:01:
15]} Ra7 {[%emt 0:03:09]} (20... Bb7 $142) 21. Rfa1 {[%emt 0:01:20]} (21. Nb5
$142 $1 {[%cal Rb5a7]} Bxb5 22. Rxa7 Qxa7 23. Bxd6 (23. cxb5 Qc7 $14)) 21...
Rfa8 $16 {[%emt 0:00:01]} 22. h3 {[%emt 0:00:05]} Ne8 {[%emt 0:01:45]} 23. Qd3
{[%emt 0:03:55]} Bg5 {[%emt 0:01:19]} 24. Qd1 {[%emt 0:04:25]} Bc8 {[%emt 0:01:
28]} 25. Rxa7 {[%emt 0:01:23]} Rxa7 {[%emt 0:00:04]} 26. Rxa7 {[%emt 0:01:54]}
Qxa7 {[%emt 0:00:03]} 27. Nb5 {[%emt 0:00:05][%csl Ya7,Yd6]} Qb8 {[%emt 0:00:
45]} 28. Qa1 {[%emt 0:00:17][%cal Yb5d6] Hoping for Nxd6!} Bf6 {[%emt 0:01:58]}
29. Qa3 {[%emt 0:00:40][%cal Rb5d6] White is much more active.} Be7 {[%emt 0:
00:21]} 30. f4 {[%emt 0:07:53]} (30. Na7 $14) 30... exf4 $11 {[%emt 0:00:24]}
31. e5 {[%emt 0:00:03]} Bd7 $1 {[%emt 0:00:14]} 32. exd6 {[%emt 0:03:23]} Bf6 {
[%emt 0:00:53]} 33. Nc3 {[%emt 0:00:19]} (33. Nc7 $11) 33... Bd4+ $15 {[%emt 0:
02:07]} 34. Kh1 {[%emt 0:00:57]} Nf6 {[%emt 0:00:04] Inhibits Ne4.} 35. Qc1 {
[%emt 0:01:06]} Be5 {[%emt 0:01:05]} 36. Qa3 {[%emt 0:00:00]} (36. Qd2 $15)
36... g5 $17 {[%emt 0:01:44]} 37. Bd3 {[%emt 0:00:52] [#]} f3 $2 {[%emt 0:00:
59] Prevents Ne2.} ({Black should try} 37... Qc8 $1 $17 {[%cal Yd7h3] White
must now prevent ...Bxh3!} 38. Nd1 {[#]} (38. Qa7 $2 Bxh3 39. Qa2 Bf5 $19)
38... Bxh3 $1) 38. gxf3 $11 {[%emt 0:00:11] Qc1 is the strong threat.} Bxh3 {
[%emt 0:00:07][%cal Yh3g4]} 39. Ne4 {[%emt 0:00:12]} Nxe4 {[%emt 0:00:19] The
position is equal.} 40. Bxe4 {[%emt 0:00:06][%cal Yf3f4] aiming for f4!} Bd7 {
[%emt 0:01:25]} 41. Bc3 {[%emt 0:32:58]} Bxc3 {[%emt 0:00:00]} 42. Qxc3+ {
[%emt 0:02:39] Weighted Error Value: White=0.15 (very precise) /Black=0.14 
(very precise)} 1/2-1/2

[Event "44th Chess Olympiad Open 2022"]
[Site "Chennai"]
[Date "2022.08.03"]
[Round "6.4"]
[White "Quesada Perez, Yasser"]
[Black "Shirov, Alexei"]
[Result "1/2-1/2"]
[WhiteElo "2568"]
[BlackElo "2704"]
[Annotator "TA"]
[PlyCount "77"]
[EventDate "2022.??.??"]
[TimeControl "60"]

{[%evp 17,77,0,0,0,0,0,0,0,18,10,2,0,0,0,20,16,24,12,19,10,16,11,3,0,30,17,55,
48,54,51,46,15,43,55,53,46,40,45,42,18,12,19,16,0,0,0,0,0,0,0,0,0,0,0,0,0,0,0,
0,0,0,0]} 1. e4 {[%emt 0:00:04]} e5 {[%emt 0:00:13]} 2. Nf3 {[%emt 0:00:06]}
Nc6 {[%emt 0:00:05]} 3. Bc4 {[%emt 0:00:05]} Bc5 {[%emt 0:00:10]} 4. c3 {
[%emt 0:00:06]} Nf6 {[%emt 0:00:05]} 5. d4 {[%emt 0:00:04]} exd4 {[%emt 0:00:
00]} 6. e5 {[%emt 0:00:04]} d5 {[%emt 0:00:19]} 7. Bb5 {[%emt 0:00:06]} Ne4 {
[%emt 0:01:51]} 8. cxd4 {[%emt 0:00:08]} Bb6 {[%emt 0:01:08]} 9. Nc3 {[%emt 0:
00:00]} O-O {[%emt 0:02:08]} 10. Be3 {[%emt 0:00:13] C54: Giuoco Piano: 4 c3
Nf6, main lines with 5 d4 and 5 d3.} Bg4 {[%emt 0:11:55]} 11. h3 {[%emt 0:00:
00]} Bh5 {[%emt 0:00:59][%cal Yg4h5,Yh5g6,Yg6d3]} 12. Qc2 {[%emt 0:00:00]} Bg6
{[%emt 0:02:14] [#] White must now prevent ...Nxc3.12...Nxc3 injects fresh
life into this line.} 13. Qb3 {[%emt 0:02:10]} Ne7 {[%emt 0:02:27]} 14. O-O {
[%emt 0:00:00]} c6 {[%emt 0:02:52]} 15. Bd3 {[%emt 0:07:42]} Nd2 {[%emt 0:00:
00]} 16. Nxd2 {[%emt 0:00:00]} Bxd3 {[%emt 0:00:05]} 17. Rfe1 {[%emt 0:00:00]
[%cal Yc3d5]} Bg6 {[%emt 0:13:38]} 18. Na4 {[%emt 0:00:00]} Nf5 {[%emt 0:00:00]
} 19. Nxb6 {[%emt 0:00:00]} axb6 {[%emt 0:00:09]} 20. Nf3 {[%emt 0:00:00] [#]}
b5 $146 {[%emt 0:04:26]} ({Predecessor:} 20... Nxe3 21. Qxe3 Qe7 22. a3 c5 23.
Qb3 Be4 24. Qxb6 Bxf3 25. gxf3 Qh4 26. e6 Qxh3 {½-½ (72) Abdusattorov,N 
(2627)-Yakubboev,N (2605) Tashkent 2021}) 21. Bd2 {[%emt 0:10:07]} Re8 {
[%emt 0:02:49]} 22. g4 {[%emt 0:03:27]} Nh4 {[%emt 0:01:55]} 23. Nh2 {[%emt 0:
00:00]} Ra4 {[%emt 0:00:00]} 24. Qe3 {[%emt 0:02:34]} Rc4 {[%emt 0:14:16]} 25.
b3 {[%emt 0:00:25]} Rc2 {[%emt 0:00:07]} 26. Rec1 {[%emt 0:00:11]} h6 {[%emt 0:
00:00]} 27. Rxc2 {[%emt 0:00:40]} Bxc2 {[%emt 0:02:57]} 28. Qg3 {[%emt 0:03:21]
} g5 {[%emt 0:09:24] The position is equal.} 29. f4 {[%emt 0:05:58]
Threatening fxg5.} f6 {[%emt 0:07:53]} 30. Nf3 {[%emt 0:12:28]} Nxf3+ {[%emt 0:
00:00]} 31. Qxf3 {[%emt 0:00:02]} fxe5 {[%emt 0:00:00]} 32. dxe5 {[%emt 0:00:
00]} Be4 {[%emt 0:00:00]} 33. Qf2 {[%emt 0:01:01]} gxf4 {[%emt 0:00:00]} 34.
Qxf4 {[%emt 0:04:47]} Rf8 {[%emt 0:03:30]} 35. Qxh6 {[%emt 0:00:39]} Rf3 {
[%emt 0:00:04]} 36. Qe6+ {[%emt 0:07:42]} Kh7 {[%emt 0:00:04]} 37. Qh6+ {
[%emt 0:00:18]} Kg8 {[%emt 0:00:04] [#] Hoping for ...Qb6+.} 38. Qe6+ {[%emt 0:
00:00]} Kh7 {[%emt 0:00:48] ( -> ...Qb6+)} (38... Kg7 $5 39. Qh6+ Kg8 $11) 39.
Qh6+ {[%emt 0:00:11] Weighted Error Value: White=0.03 (flawless) /Black=0.05 
(flawless)} 1/2-1/2

[Event "44th Chess Olympiad Open 2022"]
[Site "Chennai"]
[Date "2022.08.03"]
[Round "6.4"]
[White "Quesada Perez, Luis Ernesto"]
[Black "Santos Latasa, Jaime"]
[Result "1/2-1/2"]
[WhiteElo "2549"]
[BlackElo "2675"]
[Annotator "TA"]
[PlyCount "80"]
[EventDate "2022.??.??"]
[TimeControl "60"]

{[%evp 12,80,0,0,-2,-39,-41,-52,-39,-47,-39,-62,-42,-47,-24,-38,0,-11,0,-11,0,
0,0,0,5,5,28,-13,-18,-32,-27,-17,-13,-10,0,-16,-16,-16,-19,-12,-12,-12,-15,-21,
-16,-50,-50,-52,-52,-50,-43,-51,-26,-45,0,-8,0,0,0,0,0,0,0,0,0,0,0,0,0,0,0]} 1.
c4 {[%emt 0:00:17]} c5 {[%emt 0:00:17]} 2. g3 {[%emt 0:00:51]} Nc6 {[%emt 0:00:
00]} 3. Bg2 {[%emt 0:00:54]} g6 {[%emt 0:00:11]} 4. Nc3 {[%emt 0:00:31]} Bg7 {
[%emt 0:00:05]} 5. Nf3 {[%emt 0:00:23]} e6 {[%emt 0:00:06]} 6. d3 {[%emt 0:00:
00]} Nge7 {[%emt 0:03:41]} 7. h4 {[%emt 0:01:37]} h6 {[%emt 0:00:00] A37:
Symmetrical English vs ...g6:4 Bg2 Bg7 5 Nf3.} 8. h5 {[%emt 0:02:37]} g5 {
[%emt 0:00:46]} 9. Nxg5 {[%emt 0:00:08]} hxg5 {[%emt 0:00:27] Black is
slightly better.} 10. Bxg5 {[%emt 0:00:06]} f6 {[%emt 0:12:05][%cal Yf7f6,
Yf6g5] [#]} 11. h6 $146 {[%emt 0:00:06]} ({Predecessor:} 11. Bf4 e5 12. Bd2 d6
13. h6 Bf8 14. Nd5 Nxd5 15. cxd5 Ne7 16. e4 Kd7 17. b4 {1-0 (30) Thorfinnsson,
B (2426)-Loftsson,H (2163) Reykjavik 2018}) 11... fxg5 {[%emt 0:00:00]} 12.
hxg7 {[%emt 0:00:04]} Rxh1+ {[%emt 0:00:23]} 13. Bxh1 {[%emt 0:00:00]} Kf7 {
[%emt 0:00:28]} 14. e3 {[%emt 0:00:10]} Kxg7 {[%emt 0:04:07]} 15. Qh5 {[%emt 0:
00:54]} d5 {[%emt 0:03:17]} 16. Qxg5+ {[%emt 0:11:21]} Ng6 {[%emt 0:00:00]} 17.
Qxd8 {[%emt 0:00:07]} Nxd8 {[%emt 0:00:06]} 18. cxd5 {[%emt 0:00:00]} Ne5 {
[%emt 0:06:31]} 19. Rd1 {[%emt 0:12:05]} exd5 {[%emt 0:02:49] Threatens to win
with ...Bg4.} 20. d4 {[%emt 0:00:06]} cxd4 {[%emt 0:00:31]} 21. Rxd4 {[%emt 0:
00:07]} Ndc6 {[%emt 0:00:15]} 22. Rxd5 {[%emt 0:00:19]} a6 {[%emt 0:10:45]} 23.
Bg2 {[%emt 0:17:56]} Be6 {[%emt 0:02:31]} 24. Rd6 {[%emt 0:00:00]} Bg4 {
[%emt 0:01:19]} 25. Be4 {[%emt 0:15:42]} Nf3+ {[%emt 0:05:44]} 26. Bxf3 {
[%emt 0:03:33]} Bxf3 {[%emt 0:00:28]} 27. e4 {[%emt 0:00:13]} Ne5 {[%emt 0:01:
29]} 28. Rd5 {[%emt 0:00:22]} Re8 {[%emt 0:02:11]} 29. Kd2 {[%emt 0:00:00]}
Nc4+ {[%emt 0:04:34]} 30. Kd3 {[%emt 0:00:11]} Nxb2+ {[%emt 0:04:22]} 31. Ke3 {
[%emt 0:00:12]} Bg2 {[%emt 0:00:06][%cal Yb2a4] [#] And now ...Na4! would win.}
(31... Bh1 $5 {[%cal Rb2a4]} 32. f3 (32. Rd7+ Kg8 $17) 32... Nc4+ 33. Ke2 Rc8
34. Rd7+ Kg6 $17) 32. f3 {[%emt 0:07:09]} Rf8 {[%emt 0:02:11]} (32... Rc8 $5 {
[%cal Rc8c3]} 33. Rd7+ Kh6 34. Rd6+ Kg5 35. Rd5+ Kf6 36. Rf5+ Kg7 $15) 33. f4 {
[%emt 0:00:39] The position is equal.} b5 {[%emt 0:00:09][%cal Yb7b5,Yb5b4]}
34. f5 {[%emt 0:08:56]} b4 {[%emt 0:06:12]} 35. Ne2 {[%emt 0:08:35] [#] Hoping
for Nf4.} Re8 {[%emt 0:03:48]} 36. Rd4 {[%emt 0:00:00]} Nd1+ {[%emt 0:07:26]}
37. Rxd1 {[%emt 0:00:47] Rd4 is the strong threat.} Bxe4 {[%emt 0:00:10] White
must now prevent ...Bc2+.} 38. Rd7+ {[%emt 0:01:53]} Kf6 {[%emt 0:00:10]} 39.
Rd6+ {[%emt 0:00:52]} Kxf5 {[%emt 0:00:22]} 40. Nd4+ {[%emt 0:00:42]} Ke5 {
[%emt 0:00:19] Weighted Error Value: White=0.07 (flawless) /Black=0.06 
(flawless)} 1/2-1/2